[Event "Early-Titled-Tuesday-Blitz-November-28-2023"]
[Site "Chess.com"]
[Date "2023.11.28"]
[Round "5"]
[White "FMStan15"]
[Black "Me_ch_an"]
[Result "1-0"]
[WhiteElo "2070"]
[BlackElo "2329"]
[TimeControl "180+1"]
[EndTime "8:59:51 PST"]
[Termination "FMStan15 won by checkmate"]

1. e4 {[%clk 0:02:29.8]} 1... c5 {[%clk 0:02:58.5]} 2. c3 {[%clk 0:02:28.9]}
2... Nf6 {[%clk 0:02:58.1]} 3. e5 {[%clk 0:02:28.3]} 3... Nd5 {[%clk 0:02:57.9]}
4. d4 {[%clk 0:02:29.2]} 4... cxd4 {[%clk 0:02:53.9]} 5. Nf3 {[%clk 0:02:30.1]}
5... Nc6 {[%clk 0:02:53.6]} 6. cxd4 {[%clk 0:02:29.5]} 6... d6 {[%clk
0:02:53.6]} 7. Bc4 {[%clk 0:02:28.6]} 7... Nb6 {[%clk 0:02:53.7]} 8. Bb5 {[%clk
0:02:28.3]} 8... dxe5 {[%clk 0:02:51.4]} 9. Nxe5 {[%clk 0:02:27.5]} 9... Bd7
{[%clk 0:02:49.3]} 10. Nxd7 {[%clk 0:02:27.5]} 10... Qxd7 {[%clk 0:02:48.2]} 11.
O-O {[%clk 0:02:25.4]} 11... e6 {[%clk 0:02:48.3]} 12. Nc3 {[%clk 0:02:21.3]}
12... Be7 {[%clk 0:02:47.6]} 13. Be3 {[%clk 0:02:21.2]} 13... O-O {[%clk
0:02:46.1]} 14. Qf3 {[%clk 0:02:18.7]} 14... Rac8 {[%clk 0:02:44.8]} 15. Rfd1
{[%clk 0:02:16.1]} 15... Nd5 {[%clk 0:02:41.1]} 16. Nxd5 {[%clk 0:02:14.4]}
16... Qxd5 {[%clk 0:02:25.5]} 17. Qxd5 {[%clk 0:02:13.2]} 17... exd5 {[%clk
0:02:26.4]} 18. Rac1 {[%clk 0:02:02.7]} 18... h6 {[%clk 0:01:53.9]} 19. g3
{[%clk 0:01:59.7]} 19... Rfd8 {[%clk 0:01:49.4]} 20. Bxc6 {[%clk 0:01:57.7]}
20... Rxc6 {[%clk 0:01:46.3]} 21. Rxc6 {[%clk 0:01:57.8]} 21... bxc6 {[%clk
0:01:46.9]} 22. Rc1 {[%clk 0:01:57.6]} 22... Rb8 {[%clk 0:01:47.1]} 23. Rxc6
{[%clk 0:01:50.3]} 23... Rxb2 {[%clk 0:01:45.4]} 24. Rc7 {[%clk 0:01:50.5]}
24... Bf6 {[%clk 0:01:38]} 25. Rxa7 {[%clk 0:01:48.8]} 25... Rb1+ {[%clk
0:01:34.6]} 26. Kg2 {[%clk 0:01:48]} 26... Rd1 {[%clk 0:01:33]} 27. Rd7 {[%clk
0:01:13.3]} 27... Ra1 {[%clk 0:01:22.1]} 28. Rxd5 {[%clk 0:01:11.9]} 28... Rxa2
{[%clk 0:01:22.1]} 29. h4 {[%clk 0:01:06.7]} 29... Kf8 {[%clk 0:01:20.2]} 30.
Kf3 {[%clk 0:01:06.9]} 30... Ke7 {[%clk 0:01:20.1]} 31. Ke4 {[%clk 0:01:04.9]}
31... Ra4 {[%clk 0:01:15.2]} 32. Rb5 {[%clk 0:01:03.4]} 32... Ke6 {[%clk
0:00:57.2]} 33. Rb6+ {[%clk 0:01:01.4]} 33... Ke7 {[%clk 0:00:57.1]} 34. Kd5
{[%clk 0:00:47.8]} 34... g5 {[%clk 0:00:53.1]} 35. hxg5 {[%clk 0:00:45.1]} 35...
hxg5 {[%clk 0:00:54]} 36. Rb7+ {[%clk 0:00:40.8]} 36... Ke8 {[%clk 0:00:45.7]}
37. Kc5 {[%clk 0:00:33.8]} 37... Be7+ {[%clk 0:00:37.9]} 38. Kc6 {[%clk
0:00:28.7]} 38... Rc4+ {[%clk 0:00:28]} 39. Kb5 {[%clk 0:00:26.6]} 39... Rb4+
{[%clk 0:00:27.3]} 40. Kc6 {[%clk 0:00:25.8]} 40... Rc4+ {[%clk 0:00:27.7]} 41.
Kd5 {[%clk 0:00:26.2]} 41... Ra4 {[%clk 0:00:27.7]} 42. Rb5 {[%clk 0:00:24.9]}
42... Kd7 {[%clk 0:00:17.3]} 43. g4 {[%clk 0:00:24.5]} 43... Ra6 {[%clk
0:00:15.2]} 44. Rb7+ {[%clk 0:00:22.9]} 44... Ke8 {[%clk 0:00:15.3]} 45. Ke4
{[%clk 0:00:21.6]} 45... Re6+ {[%clk 0:00:11.9]} 46. Kd3 {[%clk 0:00:21.3]}
46... Rd6 {[%clk 0:00:11.5]} 47. Rb5 {[%clk 0:00:17.7]} 47... f6 {[%clk
0:00:11]} 48. d5 {[%clk 0:00:15]} 48... Kf7 {[%clk 0:00:10.5]} 49. Ke4 {[%clk
0:00:13.3]} 49... Kg6 {[%clk 0:00:07.6]} 50. Rb7 {[%clk 0:00:11.7]} 50... Kf7
{[%clk 0:00:06.6]} 51. Bc5 {[%clk 0:00:06.6]} 51... Ra6 {[%clk 0:00:04.9]} 52.
Rxe7+ {[%clk 0:00:05.9]} 52... Kg6 {[%clk 0:00:05.6]} 53. Rc7 {[%clk 0:00:06]}
53... Ra4+ {[%clk 0:00:05.5]} 54. Bd4 {[%clk 0:00:06.4]} 54... Ra1 {[%clk
0:00:02.8]} 55. Rc6 {[%clk 0:00:05.4]} 55... Re1+ {[%clk 0:00:03]} 56. Kf3
{[%clk 0:00:05.8]} 56... Kf7 {[%clk 0:00:02.3]} 57. Rxf6+ {[%clk 0:00:05.1]}
57... Ke7 {[%clk 0:00:03.2]} 58. Rf5 {[%clk 0:00:05.5]} 58... Kd7 {[%clk
0:00:03.6]} 59. Rxg5 {[%clk 0:00:05.3]} 59... Rd1 {[%clk 0:00:04.5]} 60. Ke4
{[%clk 0:00:04.2]} 60... Re1+ {[%clk 0:00:04.4]} 61. Be3 {[%clk 0:00:04.6]}
61... Rd1 {[%clk 0:00:05.3]} 62. Rg7+ {[%clk 0:00:04.7]} 62... Kd6 {[%clk
0:00:05.6]} 63. Rg6+ {[%clk 0:00:05]} 63... Kd7 {[%clk 0:00:05.7]} 64. g5 {[%clk
0:00:04.7]} 64... Ke7 {[%clk 0:00:05.7]} 65. f4 {[%clk 0:00:04.7]} 65... Kf7
{[%clk 0:00:06.6]} 66. f5 {[%clk 0:00:04.7]} 66... Ra1 {[%clk 0:00:06.1]} 67.
Rb6 {[%clk 0:00:04.6]} 67... Ra4+ {[%clk 0:00:07]} 68. Bd4 {[%clk 0:00:04.1]}
68... Ra2 {[%clk 0:00:06.9]} 69. Rb7+ {[%clk 0:00:04.2]} 69... Ke8 {[%clk
0:00:07.8]} 70. g6 {[%clk 0:00:04.4]} 70... Re2+ {[%clk 0:00:07.7]} 71. Kf4
{[%clk 0:00:03.8]} 71... Kf8 {[%clk 0:00:08.1]} 72. Kg5 {[%clk 0:00:03.6]} 72...
Rg2+ {[%clk 0:00:07.4]} 73. Kf6 {[%clk 0:00:04]} 73... Ke8 {[%clk 0:00:07.3]}
74. Rb8+ {[%clk 0:00:04.2]} 74... Kd7 {[%clk 0:00:07.7]} 75. g7 {[%clk
0:00:04.5]} 75... Kd6 {[%clk 0:00:05.1]} 76. g8=Q {[%clk 0:00:04.5]} 76... Rxg8
{[%clk 0:00:05.6]} 77. Rxg8 {[%clk 0:00:03.4]} 77... Kxd5 {[%clk 0:00:06.5]} 78.
Rd8+ {[%clk 0:00:03.8]} 78... Ke4 {[%clk 0:00:07.4]} 79. Ke6 {[%clk 0:00:03.6]}
79... Kf4 {[%clk 0:00:08.3]} 80. f6 {[%clk 0:00:04.3]} 80... Ke4 {[%clk
0:00:08.6]} 81. f7 {[%clk 0:00:05.2]} 81... Kd3 {[%clk 0:00:09.5]} 82. f8=Q
{[%clk 0:00:06.1]} 82... Kc4 {[%clk 0:00:10.3]} 83. Qf5 {[%clk 0:00:06.7]} 83...
Kb3 {[%clk 0:00:09.9]} 84. Qc5 {[%clk 0:00:06]} 84... Ka4 {[%clk 0:00:09]} 85.
Ra8+ {[%clk 0:00:05.8]} 85... Kb3 {[%clk 0:00:09.9]} 86. Rb8+ {[%clk 0:00:06.3]}
86... Ka2 {[%clk 0:00:10]} 87. Qa7# {[%clk 0:00:06.5]} 1-0

[Event "Early-Titled-Tuesday-Blitz-November-28-2023"]
[Site "Chess.com"]
[Date "2023.11.28"]
[Round "5"]
[White "Dewarfd"]
[Black "nuadvaga"]
[Result "1-0"]
[WhiteElo "2125"]
[BlackElo "2281"]
[TimeControl "180+1"]
[EndTime "8:59:57 PST"]
[Termination "Dewarfd won by checkmate"]

1. d4 {[%clk 0:02:58.9]} 1... Nf6 {[%clk 0:02:54.8]} 2. e3 {[%clk 0:02:58.9]}
2... d5 {[%clk 0:02:52.7]} 3. Nf3 {[%clk 0:02:59.2]} 3... c5 {[%clk 0:02:53.1]}
4. dxc5 {[%clk 0:02:58.6]} 4... e6 {[%clk 0:02:49.6]} 5. c4 {[%clk 0:02:58.6]}
5... Qa5+ {[%clk 0:02:44.9]} 6. Nc3 {[%clk 0:02:50.7]} 6... Qxc5 {[%clk
0:02:44]} 7. cxd5 {[%clk 0:02:49.6]} 7... exd5 {[%clk 0:02:39.3]} 8. Bb5+ {[%clk
0:02:49.2]} 8... Nc6 {[%clk 0:02:38.8]} 9. O-O {[%clk 0:02:48.8]} 9... Be7
{[%clk 0:02:37.1]} 10. a3 {[%clk 0:02:48.1]} 10... O-O {[%clk 0:02:36.2]} 11.
Bxc6 {[%clk 0:02:27.2]} 11... bxc6 {[%clk 0:02:37.1]} 12. Na4 {[%clk 0:02:26.8]}
12... Qd6 {[%clk 0:02:36.1]} 13. b4 {[%clk 0:02:25.7]} 13... Bg4 {[%clk
0:02:35.1]} 14. Bb2 {[%clk 0:02:21.4]} 14... Nd7 {[%clk 0:02:33.6]} 15. Rc1
{[%clk 0:02:19]} 15... Rfc8 {[%clk 0:02:33.2]} 16. h3 {[%clk 0:02:16.3]} 16...
Bh5 {[%clk 0:02:32.1]} 17. Nc5 {[%clk 0:02:02]} 17... Nxc5 {[%clk 0:02:31.3]}
18. Rxc5 {[%clk 0:02:02.9]} 18... Bf6 {[%clk 0:02:25.5]} 19. Bxf6 {[%clk
0:01:57.3]} 19... Qxf6 {[%clk 0:02:26.4]} 20. Qd4 {[%clk 0:01:54.3]} 20... Bxf3
{[%clk 0:02:25.4]} 21. Qxf6 {[%clk 0:01:54.5]} 21... gxf6 {[%clk 0:02:24.5]} 22.
gxf3 {[%clk 0:01:54.9]} 22... Rc7 {[%clk 0:02:19.7]} 23. Rfc1 {[%clk 0:01:54.8]}
23... Rac8 {[%clk 0:02:19.2]} 24. Kf1 {[%clk 0:01:54.7]} 24... a6 {[%clk
0:02:18.2]} 25. Ra5 {[%clk 0:01:50.9]} 25... Kf8 {[%clk 0:02:06.6]} 26. Rxa6
{[%clk 0:01:50.4]} 26... Ke7 {[%clk 0:02:07.2]} 27. Ra5 {[%clk 0:01:41.9]} 27...
Kd7 {[%clk 0:02:06.4]} 28. Ke2 {[%clk 0:01:40.9]} 28... Rg8 {[%clk 0:02:05.2]}
29. b5 {[%clk 0:01:34.1]} 29... Rb8 {[%clk 0:01:55.2]} 30. bxc6+ {[%clk
0:01:33.8]} 30... Kd6 {[%clk 0:01:55.6]} 31. Rd1 {[%clk 0:01:29.2]} 31... Rxc6
{[%clk 0:01:53.9]} 32. Raxd5+ {[%clk 0:01:29.1]} 32... Ke6 {[%clk 0:01:53.9]}
33. f4 {[%clk 0:01:22.1]} 33... Rb3 {[%clk 0:01:49.5]} 34. R5d3 {[%clk
0:01:20.1]} 34... Rb2+ {[%clk 0:01:48.5]} 35. Kf3 {[%clk 0:01:18.4]} 35... Rcc2
{[%clk 0:01:45.2]} 36. Rf1 {[%clk 0:01:12.9]} 36... Ra2 {[%clk 0:01:36.5]} 37.
e4 {[%clk 0:01:11.6]} 37... Rc4 {[%clk 0:01:33.7]} 38. Ke3 {[%clk 0:01:09.8]}
38... Ra4 {[%clk 0:01:33.3]} 39. f3 {[%clk 0:01:08.8]} 39... R2xa3 {[%clk
0:01:32.5]} 40. Rxa3 {[%clk 0:01:07.8]} 40... Rxa3+ {[%clk 0:01:33.4]} 41. Kf2
{[%clk 0:01:07.7]} 41... Ra2+ {[%clk 0:01:31]} 42. Kg3 {[%clk 0:01:07.9]} 42...
Ke7 {[%clk 0:01:27.6]} 43. Rb1 {[%clk 0:01:07.4]} 43... Kf8 {[%clk 0:01:27.5]}
44. Rb5 {[%clk 0:00:59.7]} 44... Ra3 {[%clk 0:01:26.2]} 45. h4 {[%clk
0:00:58.8]} 45... Kg7 {[%clk 0:01:26.2]} 46. Rb7 {[%clk 0:00:56.4]} 46... Kg6
{[%clk 0:01:25.6]} 47. Kg4 {[%clk 0:00:55.7]} 47... h5+ {[%clk 0:01:24.1]} 48.
Kg3 {[%clk 0:00:55.9]} 48... Ra1 {[%clk 0:01:24.1]} 49. Rb8 {[%clk 0:00:54.4]}
49... Rg1+ {[%clk 0:01:20.2]} 50. Kh2 {[%clk 0:00:54.6]} 50... Rf1 {[%clk
0:01:18.9]} 51. Kg2 {[%clk 0:00:55]} 51... Ra1 {[%clk 0:01:18.5]} 52. Rh8 {[%clk
0:00:55.3]} 52... Ra2+ {[%clk 0:01:16]} 53. Kg3 {[%clk 0:00:55.1]} 53... Ra1
{[%clk 0:01:11.5]} 54. f5+ {[%clk 0:00:53.1]} 54... Kg7 {[%clk 0:01:11]} 55.
Rxh5 {[%clk 0:00:51.3]} 55... Rg1+ {[%clk 0:01:09.9]} 56. Kf4 {[%clk 0:00:51.8]}
56... Rh1 {[%clk 0:01:10.2]} 57. e5 {[%clk 0:00:51.6]} 57... Ra1 {[%clk
0:01:05.5]} 58. exf6+ {[%clk 0:00:51.4]} 58... Kxf6 {[%clk 0:01:04.7]} 59. Rh6+
{[%clk 0:00:52]} 59... Kg7 {[%clk 0:01:04.9]} 60. Rb6 {[%clk 0:00:52.2]} 60...
Ra4+ {[%clk 0:01:03.6]} 61. Kg5 {[%clk 0:00:51.3]} 61... Ra1 {[%clk 0:00:54.1]}
62. f6+ {[%clk 0:00:48.1]} 62... Kh7 {[%clk 0:00:53.2]} 63. Rb7 {[%clk
0:00:47.8]} 63... Ra5+ {[%clk 0:00:52.7]} 64. Kg4 {[%clk 0:00:47]} 64... Kg6
{[%clk 0:00:52.7]} 65. Rb6 {[%clk 0:00:45.6]} 65... Ra1 {[%clk 0:00:48.9]} 66.
h5+ {[%clk 0:00:43.9]} 66... Kh6 {[%clk 0:00:48.9]} 67. Rb7 {[%clk 0:00:44]}
67... Ra4+ {[%clk 0:00:47.3]} 68. f4 {[%clk 0:00:43.8]} 68... Ra1 {[%clk
0:00:46.3]} 69. Rxf7 {[%clk 0:00:43.8]} 69... Rg1+ {[%clk 0:00:45.7]} 70. Kf5
{[%clk 0:00:44.1]} 70... Ra1 {[%clk 0:00:42.8]} 71. Rf8 {[%clk 0:00:42.5]} 71...
Kh7 {[%clk 0:00:41]} 72. Kg5 {[%clk 0:00:38.7]} 72... Rg1+ {[%clk 0:00:35.9]}
73. Kf5 {[%clk 0:00:39.1]} 73... Rg5+ {[%clk 0:00:32.6]} 74. Ke6 {[%clk
0:00:35.3]} 74... Rxh5 {[%clk 0:00:25.5]} 75. f7 {[%clk 0:00:31.9]} 75... Rh6+
{[%clk 0:00:24.4]} 76. Ke7 {[%clk 0:00:32.1]} 76... Ra6 {[%clk 0:00:21.6]} 77.
Rd8 {[%clk 0:00:21.9]} 77... Ra7+ {[%clk 0:00:08.7]} 78. Rd7 {[%clk 0:00:22]}
78... Ra1 {[%clk 0:00:08]} 79. f8=Q {[%clk 0:00:22]} 79... Re1+ {[%clk
0:00:06.6]} 80. Kd8+ {[%clk 0:00:20.5]} 80... Kg6 {[%clk 0:00:07.5]} 81. Rg7+
{[%clk 0:00:18.9]} 81... Kh5 {[%clk 0:00:07.6]} 82. Qh8# {[%clk 0:00:19.2]} 1-0

[Event "Early-Titled-Tuesday-Blitz-November-28-2023"]
[Site "Chess.com"]
[Date "2023.11.28"]
[Round "5"]
[White "Quattroporte300"]
[Black "MaxLeto"]
[Result "1-0"]
[WhiteElo "2403"]
[BlackElo "2544"]
[TimeControl "180+1"]
[EndTime "9:00:00 PST"]
[Termination "Quattroporte300 won by checkmate"]

1. e4 {[%clk 0:03:00.9]} 1... b5 {[%clk 0:02:41.3]} 2. Bxb5 {[%clk 0:03:00.1]}
2... Bb7 {[%clk 0:02:38.5]} 3. Nc3 {[%clk 0:02:59]} 3... e5 {[%clk 0:02:36.2]}
4. Nf3 {[%clk 0:02:55.6]} 4... Qe7 {[%clk 0:02:30.9]} 5. O-O {[%clk 0:02:52.2]}
5... a6 {[%clk 0:02:30.7]} 6. Bc4 {[%clk 0:02:50]} 6... g6 {[%clk 0:02:11.6]} 7.
d4 {[%clk 0:02:45.9]} 7... d6 {[%clk 0:02:09.1]} 8. dxe5 {[%clk 0:02:17.9]} 8...
dxe5 {[%clk 0:02:10]} 9. Ng5 {[%clk 0:02:03.8]} 9... Nh6 {[%clk 0:02:00.2]} 10.
Nd5 {[%clk 0:02:03.8]} 10... Bxd5 {[%clk 0:01:52.8]} 11. Qxd5 {[%clk 0:02:02.2]}
11... c6 {[%clk 0:01:51.4]} 12. Qd3 {[%clk 0:01:49.9]} 12... Bg7 {[%clk
0:01:40.8]} 13. Qh3 {[%clk 0:01:26.5]} 13... Nd7 {[%clk 0:01:26.8]} 14. Be3
{[%clk 0:01:26.3]} 14... Nf6 {[%clk 0:00:51.9]} 15. Ne6 {[%clk 0:01:05.4]} 15...
fxe6 {[%clk 0:00:37.5]} 16. Bxh6 {[%clk 0:01:05.8]} 16... Bxh6 {[%clk
0:00:27.2]} 17. Qxh6 {[%clk 0:01:06.7]} 17... Nh5 {[%clk 0:00:20.1]} 18. Rad1
{[%clk 0:00:53.3]} 18... Rf8 {[%clk 0:00:07]} 19. Rd3 {[%clk 0:00:44]} 19... Rd8
{[%clk 0:00:05.6]} 20. Bxa6 {[%clk 0:00:32.7]} 20... Rxd3 {[%clk 0:00:04.8]} 21.
Bxd3 {[%clk 0:00:31.8]} 21... Rf4 {[%clk 0:00:05.7]} 22. g3 {[%clk 0:00:26.5]}
22... Rf7 {[%clk 0:00:05.2]} 23. Bc4 {[%clk 0:00:19.1]} 23... Rf6 {[%clk
0:00:02.4]} 24. Qd2 {[%clk 0:00:17.7]} 24... Kf7 {[%clk 0:00:02.4]} 25. Rd1
{[%clk 0:00:17.6]} 25... Kg7 {[%clk 0:00:01.8]} 26. Qd7 {[%clk 0:00:17.9]} 26...
Rf7 {[%clk 0:00:02.4]} 27. Qxe7 {[%clk 0:00:16.3]} 27... Rxe7 {[%clk 0:00:03.3]}
28. Rd6 {[%clk 0:00:15.9]} 28... Nf6 {[%clk 0:00:03.8]} 29. f3 {[%clk
0:00:15.7]} 29... Ne8 {[%clk 0:00:03.7]} 30. Rxc6 {[%clk 0:00:15.4]} 30... Kf6
{[%clk 0:00:03.6]} 31. c3 {[%clk 0:00:14.4]} 31... Ra7 {[%clk 0:00:03.6]} 32. a3
{[%clk 0:00:12.5]} 32... Nc7 {[%clk 0:00:03.8]} 33. Kf2 {[%clk 0:00:11.3]} 33...
Ke7 {[%clk 0:00:04]} 34. Ke3 {[%clk 0:00:10.1]} 34... Kd7 {[%clk 0:00:04.3]} 35.
Rc5 {[%clk 0:00:10.6]} 35... Kd6 {[%clk 0:00:04.6]} 36. b4 {[%clk 0:00:09.2]}
36... Rxa3 {[%clk 0:00:03.7]} 37. Kd3 {[%clk 0:00:09.7]} 37... Ra1 {[%clk
0:00:03.8]} 38. Ra5 {[%clk 0:00:09.3]} 38... Rh1 {[%clk 0:00:03.9]} 39. b5
{[%clk 0:00:05.9]} 39... Rxh2 {[%clk 0:00:03.7]} 40. b6 {[%clk 0:00:06.6]} 40...
Ne8 {[%clk 0:00:02.5]} 41. b7 {[%clk 0:00:06.6]} 41... Kc7 {[%clk 0:00:03.2]}
42. Ra8 {[%clk 0:00:07.1]} 42... Kxb7 {[%clk 0:00:02.9]} 43. Rxe8 {[%clk
0:00:07.7]} 43... Rh3 {[%clk 0:00:03.5]} 44. Rxe6 {[%clk 0:00:07.2]} 44... Rxg3
{[%clk 0:00:03.9]} 45. Ke3 {[%clk 0:00:07.8]} 45... g5 {[%clk 0:00:03.8]} 46.
Rxe5 {[%clk 0:00:08.1]} 46... g4 {[%clk 0:00:04.3]} 47. Re7+ {[%clk 0:00:08.2]}
47... Kc6 {[%clk 0:00:04.3]} 48. Rf7 {[%clk 0:00:08]} 48... Kc5 {[%clk
0:00:03.7]} 49. Bd5 {[%clk 0:00:07.6]} 49... gxf3 {[%clk 0:00:03.3]} 50. Rxf3
{[%clk 0:00:07.2]} 50... Rg1 {[%clk 0:00:03.2]} 51. Rh3 {[%clk 0:00:07]} 51...
Rg7 {[%clk 0:00:03.3]} 52. Kf4 {[%clk 0:00:06.3]} 52... Re7 {[%clk 0:00:03.1]}
53. Kf5 {[%clk 0:00:05.6]} 53... Rc7 {[%clk 0:00:02.9]} 54. Kf6 {[%clk
0:00:05.7]} 54... Ra7 {[%clk 0:00:03]} 55. Be6 {[%clk 0:00:05]} 55... Kd6 {[%clk
0:00:02.8]} 56. e5+ {[%clk 0:00:05.1]} 56... Kc5 {[%clk 0:00:03]} 57. Rd3 {[%clk
0:00:04.6]} 57... Rc7 {[%clk 0:00:02]} 58. Bf5 {[%clk 0:00:04.9]} 58... Ra7
{[%clk 0:00:01.7]} 59. e6 {[%clk 0:00:05.5]} 59... h5 {[%clk 0:00:02.2]} 60. e7
{[%clk 0:00:05.9]} 60... Ra8 {[%clk 0:00:02.3]} 61. Bg6 {[%clk 0:00:05.3]} 61...
Ra6+ {[%clk 0:00:03.2]} 62. Kg7 {[%clk 0:00:04.7]} 62... Re6 {[%clk 0:00:01.7]}
63. e8=Q {[%clk 0:00:04.8]} 63... Rxe8 {[%clk 0:00:01.7]} 64. Bxe8 {[%clk
0:00:05.7]} 64... h4 {[%clk 0:00:02.4]} 65. Bd7 {[%clk 0:00:05.9]} 65... h3
{[%clk 0:00:03.3]} 66. Bxh3 {[%clk 0:00:06.1]} 66... Kc4 {[%clk 0:00:03.6]} 67.
Rf3 {[%clk 0:00:06.1]} 67... Kd5 {[%clk 0:00:03.2]} 68. Bg4 {[%clk 0:00:06.6]}
68... Ke5 {[%clk 0:00:04.1]} 69. Kg6 {[%clk 0:00:06.8]} 69... Kd6 {[%clk
0:00:04.5]} 70. Kg5 {[%clk 0:00:07.3]} 70... Ke5 {[%clk 0:00:05.4]} 71. Re3+
{[%clk 0:00:07.4]} 71... Kd5 {[%clk 0:00:05.9]} 72. Kf6 {[%clk 0:00:07.5]} 72...
Kd6 {[%clk 0:00:06.8]} 73. Rd3+ {[%clk 0:00:07.2]} 73... Kc6 {[%clk 0:00:07.7]}
74. Ke5 {[%clk 0:00:07.4]} 74... Kc5 {[%clk 0:00:08.6]} 75. Rd4 {[%clk
0:00:07.6]} 75... Kc6 {[%clk 0:00:09.5]} 76. Rc4+ {[%clk 0:00:07.9]} 76... Kb5
{[%clk 0:00:10]} 77. Be2 {[%clk 0:00:08.1]} 77... Kb6 {[%clk 0:00:10.1]} 78. Kd6
{[%clk 0:00:08.7]} 78... Kb5 {[%clk 0:00:10.3]} 79. Rb4+ {[%clk 0:00:08.6]}
79... Ka5 {[%clk 0:00:10.6]} 80. Rb8 {[%clk 0:00:08.1]} 80... Ka4 {[%clk
0:00:10.2]} 81. Kc5 {[%clk 0:00:08.4]} 81... Ka3 {[%clk 0:00:10.2]} 82. Kc4
{[%clk 0:00:07.1]} 82... Ka2 {[%clk 0:00:10.6]} 83. Bd1 {[%clk 0:00:06.7]} 83...
Ka1 {[%clk 0:00:09.8]} 84. Kb3 {[%clk 0:00:06.1]} 84... Kb1 {[%clk 0:00:10.2]}
85. Bc2+ {[%clk 0:00:06.7]} 85... Kc1 {[%clk 0:00:10.1]} 86. Bf5 {[%clk
0:00:06.5]} 86... Kd2 {[%clk 0:00:09.9]} 87. Rd8+ {[%clk 0:00:05.8]} 87... Kc1
{[%clk 0:00:10.8]} 88. Bd3 {[%clk 0:00:03.6]} 88... Kd2 {[%clk 0:00:10.9]} 89.
Ba6+ {[%clk 0:00:04]} 89... Kc1 {[%clk 0:00:11.8]} 90. c4 {[%clk 0:00:03.2]}
90... Kb1 {[%clk 0:00:10]} 91. Rd1# {[%clk 0:00:03.2]} 1-0